bitfinex/quotes_BTCUSD_20250119
["timestamp","ask_amount","ask_price","bid_price","bid_amount"]
[1737261690227,0.17660645,104990.0,104980.0,0.28241049]
[1737261690446,0.17660645,104990.0,104980.0,0.1831394]
[1737261690921,0.55510645,104990.0,104980.0,0.00089859]
[1737261691214,0.55510645,104990.0,104980.0,0.01012612]
[1737261692321,0.55510645,104990.0,104980.0,0.00119472]
[1737261693164,0.65434726,104990.0,104980.0,0.00119472]
[1737261693520,0.55510645,104990.0,104980.0,0.00119472]
[1737261701269,0.17660645,104990.0,104980.0,0.00119472]
[1737261701488,0.17660645,104990.0,104980.0,0.17623553]
[1737261701695,0.17660645,104990.0,104980.0,0.29850662]
[1737261701892,0.17750484,104990.0,104980.0,0.30743484]
[1737261702702,0.17740836,104990.0,104980.0,0.30743484]
[1737261703111,0.17740836,104990.0,104980.0,0.32172255]
[1737261705530,0.17740836,104990.0,104980.0,0.22245146]
[1737261706071,0.32740836,104990.0,104980.0,0.02441065]
[1737261706247,0.47740836,104990.0,104980.0,0.02441065]
[1737261707882,0.47740836,104990.0,104980.0,0.01012294]
[1737261708926,0.32740836,104990.0,104980.0,0.01012294]
[1737261715443,0.32740836,104990.0,104980.0,0.02442215]
[1737261716866,0.64990836,104990.0,104980.0,0.02442215]
[1737261722168,0.64990836,104990.0,104980.0,0.01012294]
[1737261725316,0.41854891,104990.0,104980.0,0.44314378]
[1737261725584,0.41854891,104990.0,104980.0,0.34693524]
[1737261725585,0.17740836,104990.0,104980.0,0.34693524]
[1737261725795,0.17740836,104990.0,104980.0,0.6131867]
[1737261726399,0.17740836,104990.0,104980.0,0.41865961]
[1737261726814,0.17740836,104990.0,104980.0,0.5179307]
[1737261726990,0.17740836,104990.0,104980.0,0.60351946]
[1737261727467,0.17740836,104990.0,104980.0,0.60368527]
[1737261727653,0.17740836,104990.0,104980.0,0.56115735]
[1737261728688,0.17740836,104990.0,104980.0,0.73238153]
[1737261728817,0.17740836,104990.0,104980.0,0.71808113]
[1737261733164,0.17740836,104990.0,104980.0,0.61881004]
[1737261733366,0.17740836,104990.0,104980.0,0.39556923]
[1737261734084,0.17740836,104990.0,104980.0,0.01028875]
[1737261736025,0.17740836,104990.0,104980.0,0.33280065]
[1737261736922,0.17740836,104990.0,104980.0,0.71808113]
[1737261739350,0.17740836,104990.0,104980.0,0.81333713]
[1737261739585,0.09604891,104990.0,104980.0,0.81333713]
[1737261740489,0.00089839,104990.0,104980.0,0.81333713]
[1737261741513,0.00089839,104990.0,104980.0,0.68464087]
[1737261746529,0.00089839,104990.0,104980.0,0.64174836]
[1737261750175,0.00089839,104990.0,104980.0,0.81267719]
[1737261754128,0.00089839,104990.0,104980.0,1.15937719]
[1737261754335,0.00089839,104990.0,104980.0,1.24073664]
[1737261754560,0.00089839,104990.0,104980.0,1.15937719]
[1737261755188,0.00089839,104990.0,104980.0,1.17366615]
[1737261755331,0.00089839,104990.0,104980.0,1.04562983]
[1737261757390,0.00089839,104990.0,104980.0,1.07532383]
[1737261759951,0.00089839,104990.0,104980.0,1.05232383]
[1737261760159,0.00089839,104990.0,104980.0,1.02262983]
[1737261760350,0.09614539,104990.0,104980.0,0.92335874]
[1737261760573,0.17750484,104990.0,104980.0,0.70410274]
[1737261760749,0.17750484,104990.0,104980.0,0.47967383]
[1737261760956,0.17750484,104990.0,104980.0,0.60769073]
[1737261761180,0.17750484,104990.0,104980.0,0.70294673]
[1737261761382,0.09614539,104990.0,104980.0,0.70294673]
[1737261761605,0.09614539,104990.0,104980.0,0.82844673]
[1737261761606,0.00089839,104990.0,104980.0,0.82844673]
[1737261761807,0.09614539,104990.0,104980.0,0.82844673]
[1737261763006,0.00089839,104990.0,104980.0,0.82844673]
[1737261764807,0.09614539,104990.0,104980.0,0.82844673]
[1737261767001,0.00089839,104990.0,104980.0,0.82844673]
[1737261768308,0.00089839,104990.0,104980.0,0.6575129]
[1737261768729,0.00089839,104990.0,104980.0,0.68723306]
[1737261768940,0.00089839,104990.0,104980.0,0.73014999]
[1737261770713,0.00089839,104990.0,104980.0,1.05384999]
[1737261770968,0.00089839,104990.0,104980.0,1.32684999]
[1737261771340,0.00089839,104990.0,104980.0,1.44925356]
[1737261771922,0.00089839,104990.0,104980.0,1.07994837]
[1737261772530,0.00104914,105000.0,104990.0,0.27111809]
[1737261772772,0.00104914,105000.0,104990.0,0.40007906]
[1737261773312,0.00104914,105000.0,104990.0,1.03609771]
[1737261773543,0.00104914,105000.0,104990.0,1.86305716]
[1737261773788,0.00104914,105000.0,104990.0,1.78169771]
[1737261774305,0.00104914,105000.0,104990.0,1.52506181]
[1737261774673,0.00104914,105000.0,104990.0,1.54827899]
[1737261775663,0.00104914,105000.0,104990.0,1.16934004]
[1737261776960,0.00104914,105000.0,104990.0,1.54782046]
[1737261781848,0.00104914,105000.0,104990.0,1.55450046]
[1737261782483,0.00104914,105000.0,104990.0,1.63585991]
[1737261782629,0.00104914,105000.0,104990.0,1.78585991]
[1737261783772,0.00104914,105000.0,104990.0,1.32602004]
[1737261784537,0.00104914,105000.0,104990.0,1.07602004]
[1737261784743,0.00104914,105000.0,104990.0,0.97602004]
[1737261785600,0.00104914,105000.0,104990.0,0.92712004]
[1737261785804,0.00104914,105000.0,104990.0,1.17598585]
[1737261786011,0.00104914,105000.0,104990.0,1.16930585]
[1737261786252,0.00104914,105000.0,104990.0,1.17598585]
[1737261786464,0.00104914,105000.0,104990.0,1.05396217]
[1737261788413,0.00104914,105000.0,104990.0,1.64206541]
[1737261789255,0.00104914,105000.0,104990.0,1.76408909]
[1737261789461,0.0004279,105020.0,105010.0,0.19450009]
[1737261789672,0.00047785,105020.0,105010.0,0.2937409]
[1737261789914,0.00047785,105020.0,105010.0,0.29414842]
[1737261790510,0.00047785,105020.0,105010.0,0.31735219]
[1737261790932,0.00047785,105020.0,105010.0,0.70140969]
[1737261797770,0.0818373,105020.0,105010.0,0.70140969]
[1737261798194,0.00047785,105020.0,105010.0,0.70140969]
[1737261798669,0.00047785,105020.0,105010.0,0.48804441]
[1737261800496,0.2540563,105020.0,105010.0,0.39281541]
[1737261800704,0.3030563,105020.0,105010.0,0.29354432]
[1737261800908,0.3030563,105020.0,105010.0,0.19430351]
[1737261801746,0.3030563,105020.0,105010.0,0.02361129]
[1737261802820,0.3030563,105020.0,105010.0,0.1228521]
[1737261803601,0.3030563,105020.0,105010.0,0.22212319]
[1737261805250,0.3030563,105020.0,105010.0,0.1228521]
[1737261805450,0.3030563,105020.0,105010.0,0.22212319]
[1737261806312,0.3030563,105020.0,105010.0,0.02361129]
[1737261807707,0.31262915,105020.0,105010.0,0.02361129]
[1737261812606,0.63512915,105020.0,105010.0,0.02361129]
[1737261813200,0.78512915,105020.0,105010.0,0.02361129]
[1737261814339,0.78512915,105020.0,105010.0,0.00933164]
[1737261814623,0.63512915,105020.0,105010.0,0.00933164]
[1737261815611,0.63512915,105020.0,105010.0,0.02361129]
[1737261818518,0.31262915,105020.0,105010.0,0.02361129]
[1737261824580,0.63512915,105020.0,105010.0,0.02361129]
[1737261827528,0.61381787,105020.0,105010.0,0.02361129]
[1737261830713,0.16531787,105020.0,105010.0,0.1228521]
[1737261830905,0.16531787,105020.0,105010.0,0.22212319]
[1737261831084,0.18831787,105020.0,105010.0,0.22212319]
[1737261831867,0.06052602,105020.0,105010.0,0.39405219]
[1737261832089,0.07480321,105020.0,105010.0,0.39405219]
[1737261832529,0.09780321,105020.0,105010.0,0.39405219]
[1737261832685,0.09780321,105020.0,105010.0,0.77810969]
[1737261833493,0.10477944,105020.0,105010.0,0.77810969]
[1737261833698,0.11869685,105020.0,105010.0,0.77810969]
[1737261833872,0.02347785,105020.0,105010.0,0.77810969]
[1737261834074,0.11869685,105020.0,105010.0,0.77810969]
[1737261834274,0.02347785,105020.0,105010.0,0.77810969]
[1737261836128,0.19999844,105020.0,105010.0,0.77810969]
[1737261836324,0.10477944,105020.0,105010.0,0.77810969]
[1737261836650,0.02347785,105020.0,105010.0,0.77810969]
[1737261836987,0.02347785,105020.0,105010.0,0.82310969]
[1737261839621,0.02347785,105020.0,105010.0,0.65241747]
[1737261840540,0.02347785,105020.0,105010.0,0.55718847]
[1737261840541,0.11869685,105020.0,105010.0,0.55718847]
[1737261840743,0.19999844,105020.0,105010.0,0.68313235]
[1737261840965,0.19999844,105020.0,105010.0,0.50716126]
[1737261841166,0.27589844,105020.0,105010.0,0.50716126]
[1737261841373,0.27589844,105020.0,105010.0,0.40792045]
[1737261841872,0.27589844,105020.0,105010.0,0.02361129]
[1737261843823,0.27589844,105020.0,105010.0,0.02320377]
[1737261853435,0.61209563,105020.0,105010.0,0.02320377]
[1737261853645,0.76209563,105020.0,105010.0,0.02320377]
[1737261853851,0.76209563,105020.0,105010.0,0.00892412]
[1737261854047,0.76136672,105020.0,105010.0,0.00892412]
[1737261855451,0.391529,105010.0,105000.0,0.00089859]
[1737261855656,0.65352435,105010.0,105000.0,0.00089859]
[1737261856262,0.65425326,105010.0,105000.0,0.00089859]
[1737261856460,0.47363518,105010.0,105000.0,0.00089859]
[1737261857799,0.47290627,105010.0,105000.0,0.00089859]
[1737261859201,0.34960627,105010.0,105000.0,0.00089859]
[1737261860537,0.36904133,105010.0,105000.0,0.00089859]
[1737261860912,0.36904133,105010.0,105000.0,0.00984442]
[1737261861113,0.19960627,105010.0,105000.0,0.00984442]
[1737261861784,0.2092511,105010.0,105000.0,0.00984442]
[1737261862020,0.3405511,105010.0,105000.0,0.00984442]
[1737261862219,0.4905511,105010.0,105000.0,0.00984442]
[1737261863146,0.64128001,105010.0,105000.0,0.00984442]
[1737261863347,0.64128001,105010.0,105000.0,0.00089859]
[1737261864856,0.64170791,105010.0,105000.0,0.00089859]
[1737261865878,0.72308518,105010.0,105000.0,0.00089859]
[1737261866098,0.9215668,105010.0,105000.0,0.00089859]
[1737261866297,0.9215668,105010.0,104990.0,0.00898866]
[1737261866298,0.17372891,105000.0,104990.0,0.00898866]
[1737261866441,0.46283335,105000.0,104990.0,0.00898866]
[1737261866723,0.46283335,105000.0,104990.0,0.000854]
[1737261866894,0.46747591,104990.0,104980.0,0.00089859]
[1737261867064,0.63145318,104990.0,104980.0,0.00089859]
[1737261867547,0.73069399,104990.0,104980.0,0.00089859]
[1737261867762,0.58069399,104990.0,104980.0,0.00089859]
[1737261868001,0.49858781,104990.0,104980.0,0.00089859]
[1737261868211,0.76058316,104990.0,104980.0,0.00089859]
[1737261868723,0.66134235,104990.0,104980.0,5.9e-07]
[1737261869234,0.350856,104980.0,104970.0,0.00089859]
[1737261869453,0.66135135,104980.0,104970.0,0.00089859]
[1737261869898,0.66135135,104980.0,104970.0,5.9e-07]
[1737261870555,0.66140127,104980.0,104970.0,5.9e-07]
[1737261870753,0.69577363,104980.0,104970.0,5.9e-07]
[1737261870957,0.51361954,104970.0,104960.0,0.0016288]
[1737261871158,0.61286035,104970.0,104960.0,0.0016288]
[1737261872831,0.58102854,104960.0,104950.0,0.041428]
[1737261873090,0.68026935,104960.0,104950.0,0.041428]
[1737261873289,0.77951016,104960.0,104950.0,0.041428]
[1737261874189,0.68026935,104960.0,104950.0,0.041428]
[1737261875316,0.66136935,104960.0,104950.0,0.041428]
[1737261875908,0.418283,104950.0,104940.0,0.00089775]
[1737261876108,0.59890108,104950.0,104940.0,0.00089775]
[1737261878218,0.59962999,104950.0,104940.0,0.00089775]
[1737261879224,0.59890108,104950.0,104940.0,0.00089775]
[1737261879913,0.59962999,104950.0,104940.0,0.00089775]
[1737261880776,0.6988708,104950.0,104940.0,0.00089775]
[1737261881537,0.59962999,104950.0,104940.0,0.00089775]
[1737261883628,0.47666027,104950.0,104940.0,0.00089775]
[1737261884051,0.49966027,104950.0,104940.0,0.00089775]
[1737261887392,0.82216027,104950.0,104940.0,0.00089775]
[1737261888513,0.52216027,104950.0,104940.0,0.00089775]
[1737261888711,0.52216027,104950.0,104940.0,0.08289775]
[1737261888712,0.49916027,104950.0,104940.0,0.08289775]
[1737261888912,0.64916027,104950.0,104940.0,0.08289775]
[1737261889118,0.64916027,104950.0,104940.0,0.09180412]
[1737261891616,0.64916027,104950.0,104940.0,0.00980412]
[1737261894433,0.64916027,104950.0,104940.0,0.09180412]
[1737261895310,0.64916027,104950.0,104940.0,0.1060941]
[1737261896495,0.64916027,104950.0,104940.0,0.304606]
[1737261899304,0.32666027,104950.0,104940.0,0.304606]
[1737261900585,0.32666027,104950.0,104940.0,0.31893623]
[1737261900918,0.32755928,104950.0,104940.0,0.31893623]
[1737261902809,0.32755928,104950.0,104940.0,0.29913623]
[1737261904816,0.32755928,104950.0,104940.0,0.284806]
[1737261906061,0.15089901,104950.0,104940.0,0.380098]
[1737261906275,0.15089901,104950.0,104940.0,0.425098]
[1737261906391,0.24618201,104950.0,104940.0,0.425098]
[1737261906622,0.32755928,104950.0,104940.0,0.329806]
[1737261907437,0.32755928,104950.0,104940.0,0.425098]
[1737261908921,0.32755928,104950.0,104940.0,0.329806]
[1737261912328,0.32755928,104950.0,104940.0,0.3302342]
[1737261917683,0.32755928,104950.0,104940.0,0.11395899]
[1737261928060,0.32755928,104950.0,104940.0,0.28490287]
[1737261929690,0.32755928,104950.0,104940.0,0.11395899]
[1737261930466,0.32755928,104950.0,104940.0,0.28490287]
[1737261932805,0.32755928,104950.0,104940.0,0.50490287]
[1737261933409,0.24618201,104950.0,104940.0,0.50490287]
[1737261933742,0.32755928,104950.0,104940.0,0.60417396]
[1737261934556,0.32755928,104950.0,104940.0,0.79773924]
[1737261935799,0.32755928,104950.0,104940.0,0.58437396]
[1737261937019,0.32755928,104950.0,104940.0,0.79773924]
[1737261937454,0.32755928,104950.0,104940.0,0.69846815]
[1737261937628,0.32755928,104950.0,104940.0,0.60473736]
[1737261938499,0.32755928,104950.0,104940.0,0.2204282]
[1737261941312,0.65005928,104950.0,104940.0,0.2204282]
[1737261946330,0.65005928,104950.0,104940.0,0.3014282]
[1737261946535,0.65005928,104950.0,104940.0,0.4999401]
[1737261946742,0.55477628,104950.0,104940.0,0.5952321]
[1737261946935,0.65005928,104950.0,104940.0,0.4999401]
[1737261947360,0.32755928,104950.0,104940.0,0.4999401]
[1737261947704,0.32755928,104950.0,104940.0,0.67088398]
[1737261948090,0.32755928,104950.0,104940.0,0.39137208]
[1737261949222,0.32755928,104950.0,104940.0,0.2204282]
[1737261953130,0.65005928,104950.0,104940.0,0.2204282]
[1737261959411,0.65005928,104950.0,104940.0,0.4189401]
[1737261960670,0.65005928,104950.0,104940.0,0.31966901]
[1737261961281,0.65005928,104950.0,104940.0,0.4189401]
[1737261963301,0.65005928,104950.0,104940.0,0.31966901]
[1737261964013,0.65005928,104950.0,104940.0,0.2204282]
[1737261964262,0.77465928,104950.0,104940.0,0.2204282]
[1737261965090,0.55653655,104950.0,104940.0,0.2204282]
[1737261965294,0.55653655,104950.0,104940.0,0.22932939]
[1737261965295,0.80650627,104950.0,104940.0,0.22932939]
[1737261965607,0.80577736,104950.0,104940.0,0.22932939]
[1737261965817,0.89101027,104950.0,104940.0,0.21027039]
[1737261966171,0.89101027,104950.0,104940.0,0.1560442]
[1737261966634,0.89173918,104950.0,104940.0,0.1560442]
[1737261966849,1.22711971,104950.0,104940.0,0.1560442]
[1737261967182,1.22711971,104950.0,104940.0,0.14714301]
[1737261967382,1.09936761,104950.0,104940.0,0.14714301]
[1737261967803,0.81078597,104950.0,104940.0,0.14714301]
[1737261968367,1.10560375,104950.0,104940.0,0.14714301]
[1737261969033,0.95818014,104950.0,104940.0,0.14714301]
[1737261969404,1.05742095,104950.0,104940.0,0.14714301]
[1737261969790,0.95818014,104950.0,104940.0,0.14757101]
[1737261970621,1.12451115,104950.0,104940.0,0.14757101]
[1737261971131,0.95818014,104950.0,104940.0,0.14757101]
[1737261971685,0.95745123,104950.0,104940.0,0.14757101]
[1737261972331,0.80745123,104950.0,104940.0,0.14757101]
[1737261972506,0.95818014,104950.0,104940.0,0.14757101]
[1737261972707,0.82969337,104950.0,104940.0,0.14757101]
[1737261972968,0.82896446,104950.0,104940.0,0.14757101]
[1737261973126,0.68292365,104950.0,104940.0,0.14757101]
[1737261973344,0.43212365,104950.0,104940.0,0.14757101]
[1737261973881,0.26321625,104950.0,104940.0,0.14757101]
[1737261974018,0.41321625,104950.0,104940.0,0.14757101]
[1737261974220,0.58571625,104950.0,104940.0,0.2468421]
[1737261974420,0.50005928,104950.0,104940.0,0.3282421]
[1737261974657,0.65005928,104950.0,104940.0,0.33522171]
[1737261976030,0.65005928,104950.0,104940.0,0.3494297]
[1737261976151,0.65005928,104950.0,104940.0,0.25015861]
[1737261976999,0.65005928,104950.0,104940.0,0.3494297]
[1737261977721,0.65005928,104950.0,104940.0,0.25015861]
[1737261978352,0.65005928,104950.0,104940.0,0.3494297]
[1737261979351,0.65005928,104950.0,104940.0,0.25015861]
[1737261979530,0.65005928,104950.0,104940.0,0.3494297]
[1737261979709,0.65005928,104950.0,104940.0,0.25015861]
[1737261979908,0.65005928,104950.0,104940.0,0.23595062]
[1737261980108,0.65005928,104950.0,104940.0,0.15455062]
[1737261983546,0.65005928,104950.0,104940.0,0.14567101]
[1737261984303,0.75443655,104950.0,104940.0,0.14567101]
[1737261984505,0.75443655,104950.0,104940.0,0.10755301]
[1737261984506,0.80537736,104950.0,104940.0,0.10755301]
[1737261984710,0.80537736,104950.0,104940.0,0.04443501]
[1737261984912,0.80610627,104950.0,104940.0,0.04443501]
[1737261985113,0.89103433,104950.0,104940.0,0.02537601]
[1737261985322,0.171101,104930.0,104920.0,0.01511291]
[1737261985530,0.25247827,104930.0,104920.0,0.01511291]
[1737261986159,0.33385554,104930.0,104920.0,0.00089775]
[1737261986671,0.33385554,104930.0,104920.0,0.00139789]
[1737261988307,0.35685554,104930.0,104920.0,0.00139789]
[1737261989797,0.35758445,104930.0,104920.0,0.00139789]
[1737261990207,0.37632928,104930.0,104920.0,0.00139789]
[1737261990527,0.47557009,104930.0,104920.0,0.00139789]
[1737261990827,0.37632928,104930.0,104920.0,0.00139789]
[1737261991476,0.3856125,104930.0,104920.0,0.00139789]
[1737261992792,0.5356125,104930.0,104920.0,0.00139789]
[1737261992954,0.3856125,104930.0,104920.0,0.00139789]
[1737261995830,0.28608359,104930.0,104920.0,0.00139789]
[1737261996034,0.18596149,104930.0,104920.0,0.07759789]
[1737261997756,0.18596149,104930.0,104920.0,0.08646842]
[1737261998183,0.50846149,104930.0,104920.0,0.08646842]
[1737261998385,0.50846149,104930.0,104920.0,0.28498032]
[1737261998591,0.50846149,104930.0,104920.0,0.33118032]
[1737261998795,0.09066049,104930.0,104920.0,0.42649032]
[1737261999404,0.08137727,104930.0,104920.0,0.44068873]
[1737261999768,0.28676301,104950.0,104940.0,0.22337109]
[1737262000175,0.43676301,104950.0,104940.0,0.22337109]
[1737262001020,0.43676301,104950.0,104940.0,0.23224162]
[1737262001418,0.51814028,104950.0,104940.0,0.23224162]
[1737262001999,0.43676301,104950.0,104940.0,0.23224162]
[1737262002199,0.51814028,104950.0,104940.0,0.23224162]
[1737262003530,0.52750805,104950.0,104940.0,0.23224162]
[1737262004107,0.85000805,104950.0,104940.0,0.23224162]
[1737262007533,0.85000805,104950.0,104940.0,0.13297053]
[1737262007744,0.85000805,104950.0,104940.0,0.00887053]
[1737262008602,0.59224334,104950.0,104940.0,0.00887053]
[1737262008807,0.245292,104940.0,104930.0,0.01419841]
[1737262008988,0.32666927,104940.0,104930.0,0.01419841]
[1737262010180,0.51725827,104940.0,104930.0,0.0088653]
[1737262011538,0.51698411,104940.0,104930.0,0.0088653]
[1737262012432,0.51698411,104940.0,104930.0,0.2827772]
[1737262012842,0.32639511,104940.0,104930.0,0.3780782]
[1737262013048,0.32639511,104940.0,104930.0,0.2827772]
[1737262013252,0.32639511,104940.0,104930.0,0.3780782]
[1737262013476,0.32639511,104940.0,104930.0,0.39227661]
[1737262014132,0.32639511,104940.0,104930.0,0.29697561]
[1737262016001,0.32639511,104940.0,104930.0,0.29740361]
[1737262017004,0.32639511,104940.0,104930.0,0.39270461]
[1737262017346,0.32639511,104940.0,104930.0,0.44140461]
[1737262017347,0.23110311,104940.0,104930.0,0.44140461]
[1737262018402,0.09164405,104950.0,104940.0,0.32016309]
[1737262018663,0.09164405,104950.0,104940.0,0.4194039]
[1737262018800,0.23227628,104950.0,104940.0,0.4194039]
[1737262020256,0.23227628,104950.0,104940.0,0.44246761]
[1737262021243,0.23227628,104950.0,104940.0,0.45665031]
[1737262022221,0.00089901,104950.0,104940.0,0.45665031]
[1737262022449,0.00089901,104950.0,104940.0,0.58515266]
[1737262022657,0.00089901,104950.0,104940.0,0.57096996]
[1737262023372,0.00089901,104950.0,104940.0,0.89466996]
[1737262023539,0.00089901,104950.0,104940.0,1.27897912]
[1737262023742,0.00089901,104950.0,104940.0,1.37897912]
[1737262023940,0.00089901,104950.0,104940.0,1.43158308]
[1737262024184,0.08227628,104980.0,104970.0,0.31873609]
[1737262024380,0.08227628,104980.0,104970.0,0.4179769]
[1737262025134,0.17753228,104980.0,104970.0,0.4179769]
[1737262025537,0.3275822,104980.0,104970.0,0.44104061]
[1737262025950,0.2323262,104980.0,104970.0,0.44104061]
[1737262026179,0.3275822,104980.0,104970.0,0.44104061]
[1737262026553,0.2323262,104980.0,104970.0,0.44104061]
[1737262026698,0.3275822,104980.0,104970.0,0.44104061]
[1737262027509,0.2323262,104980.0,104970.0,0.44104061]
[1737262028350,0.3275822,104980.0,104970.0,0.44104061]
[1737262029484,0.2323262,104980.0,104970.0,0.44104061]
[1737262029824,0.3275822,104980.0,104970.0,0.44104061]
[1737262031763,0.2323262,104980.0,104970.0,0.44104061]
[1737262031959,0.3275822,104980.0,104970.0,0.44104061]
[1737262032361,0.3275822,104980.0,104970.0,0.22157561]
[1737262034224,0.3275822,104980.0,104970.0,0.2073772]
[1737262034421,0.3275822,104980.0,104970.0,0.10813639]
[1737262034628,0.5180992,104980.0,104970.0,0.05656742]
[1737262036555,0.5180992,104980.0,104970.0,0.15580823]
[1737262036970,0.5180992,104980.0,104970.0,0.25107323]
[1737262037187,0.5180992,104980.0,104970.0,0.15580823]
[1737262037390,0.15094893,104980.0,104970.0,0.29997323]
[1737262037596,0.15094893,104980.0,104970.0,0.37527323]
[1737262038436,0.00094893,104980.0,104970.0,0.38947164]
[1737262040066,0.00094893,104980.0,104970.0,0.38989954]
[1737262041085,0.00094893,104980.0,104970.0,0.40398103]
[1737262041270,0.00094893,104980.0,104970.0,0.86283617]
[1737262041423,0.00094893,104980.0,104970.0,0.89376117]
[1737262041839,0.00094893,104980.0,104970.0,0.97967968]
[1737262042067,0.00094893,104980.0,104970.0,1.47383439]
[1737262042663,0.00094893,104980.0,104970.0,1.51644807]
[1737262042861,0.00094893,104980.0,104970.0,1.48552307]
[1737262043066,0.00094893,104980.0,104970.0,1.4041458]
[1737262043512,0.00094893,104980.0,104970.0,1.4038572]
[1737262045334,0.00094893,104980.0,104970.0,1.44682715]
[1737262046107,0.29554372,105010.0,105000.0,0.15151682]
[1737262046317,0.29554372,105010.0,105000.0,0.25075763]
[1737262046725,0.0004279,105010.0,105000.0,0.25075763]
[1737262047742,0.0004279,105010.0,105000.0,0.2877582]
[1737262048569,0.0004279,105010.0,105000.0,0.3630582]
[1737262048772,0.0004279,105010.0,105000.0,0.34902465]
[1737262055337,0.0004279,105010.0,105000.0,0.35554465]
[1737262055542,0.0004279,105010.0,105000.0,0.45554465]
[1737262062135,0.0004279,105010.0,105000.0,0.27372465]
[1737262062340,0.0956569,105010.0,105000.0,0.27372465]
[1737262063062,0.0004279,105010.0,105000.0,0.27372465]
[1737262063261,0.0956569,105010.0,105000.0,0.27372465]
[1737262063466,0.0004279,105010.0,105000.0,0.27372465]
[1737262064291,0.0004279,105010.0,105000.0,0.28775644]
[1737262065500,0.0004279,105010.0,105000.0,0.27372465]
[1737262069262,0.0004279,105010.0,105000.0,0.44359909]
[1737262071139,0.17703417,105010.0,105000.0,0.34836109]
[1737262071360,0.17703417,105010.0,105000.0,0.17848665]
[1737262071574,0.17703417,105010.0,105000.0,0.27372465]
[1737262072823,0.17703417,105010.0,105000.0,0.17848665]
[1737262073048,0.30133417,105010.0,105000.0,0.17848665]
[1737262073608,0.45133417,105010.0,105000.0,0.19257526]
[1737262074428,0.46061428,105010.0,105000.0,0.19257526]
[1737262074848,0.46061428,105010.0,105000.0,0.12220783]
[1737262075328,0.48361428,105010.0,105000.0,0.07924584]
[1737262075867,0.80611428,105010.0,105000.0,0.02296702]
[1737262076070,0.90535509,105010.0,105000.0,0.02296702]
[1737262076260,0.80611428,105010.0,105000.0,0.02296702]
[1737262079117,0.80611428,105010.0,105000.0,0.07924584]
[1737262080843,0.80611428,105010.0,105000.0,0.02296702]
[1737262081952,0.48361428,105010.0,105000.0,0.02296702]
[1737262083521,0.48361428,105010.0,105000.0,0.07924584]
[1737262083929,0.48361428,105010.0,105000.0,0.02296702]
[1737262084369,0.57360293,105010.0,105000.0,0.02296702]
[1737262084578,0.48361428,105010.0,105000.0,0.02296702]
[1737262098158,0.48276183,105010.0,105000.0,0.02296702]
[1737262099061,0.48318993,105010.0,105000.0,0.02296702]
[1737262104066,0.70752919,105010.0,105000.0,0.02296702]
[1737262104227,0.196938,105000.0,104990.0,0.780952]
[1737262104434,0.44891372,105000.0,104990.0,0.780952]
[1737262105055,0.84815453,105000.0,104990.0,0.780952]
[1737262105811,1.54815453,105000.0,104990.0,0.780952]
[1737262106623,1.38539999,105000.0,104990.0,0.780952]
[1737262106847,1.54815453,105000.0,104990.0,0.780952]
[1737262107052,1.6337922,105000.0,104990.0,0.780952]
[1737262107794,1.54815453,105000.0,104990.0,0.780952]
[1737262108020,1.54815453,105000.0,104990.0,0.57931914]
[1737262108021,1.50443335,105000.0,104990.0,0.57931914]
[1737262108225,1.35443335,105000.0,104990.0,0.46089533]
[1737262108810,1.3731472,105000.0,104990.0,0.46089533]
[1737262109009,1.58727164,105000.0,104990.0,0.44184633]
[1737262109227,1.58727164,105000.0,104990.0,0.42279733]
[1737262109441,1.58727164,105000.0,104990.0,0.38469933]
[1737262109648,1.58727164,105000.0,104990.0,0.36565033]
[1737262110094,1.63099282,105000.0,104990.0,0.36565033]
[1737262110840,1.65250605,105000.0,104990.0,0.36565033]
[1737262111149,1.50250605,105000.0,104990.0,0.36565033]
[1737262111354,1.65250605,105000.0,104990.0,0.36565033]
[1737262111784,1.56686838,105000.0,104990.0,0.36565033]
[1737262112449,1.27390639,105000.0,104990.0,0.36565033]
[1737262112632,0.97670639,105000.0,104990.0,0.36565033]
[1737262113192,0.17661527,105000.0,104990.0,0.42192915]
[1737262113400,0.25799254,105000.0,104990.0,0.42192915]
[1737262114153,0.40799254,105000.0,104990.0,0.42192915]
[1737262114359,0.43099254,105000.0,104990.0,0.42192915]
[1737262115961,0.34961527,105000.0,104990.0,0.42192915]
[1737262116161,0.34961527,105000.0,104990.0,0.59796996]
[1737262116797,0.19961527,105000.0,104990.0,0.59796996]
[1737262117011,0.17661527,105000.0,104990.0,0.65453156]
[1737262119742,0.17661527,105000.0,104990.0,0.66854985]
[1737262121480,0.095238,105000.0,104990.0,0.76379685]
[1737262121687,0.095238,105000.0,104990.0,0.76469586]
[1737262121885,0.095238,105000.0,104990.0,0.66944886]
[1737262121886,0.17704337,105000.0,104990.0,0.66944886]
[1737262122123,0.17704337,105000.0,104990.0,0.76469586]
[1737262122325,0.0004281,105000.0,104990.0,0.76469586]
[1737262122527,0.0956661,105000.0,104990.0,0.76469586]
[1737262123103,0.0004281,105000.0,104990.0,0.76469586]
[1737262123295,0.0956661,105000.0,104990.0,0.76469586]
[1737262123905,0.0956661,105000.0,104990.0,0.66944886]
[1737262124103,0.17704337,105000.0,104990.0,0.66944886]
[1737262124331,0.08180537,105000.0,104990.0,0.76469586]
[1737262124554,0.17704337,105000.0,104990.0,0.76469586]
[1737262124759,0.17704337,105000.0,104990.0,0.66944886]
[1737262125474,0.17704337,105000.0,104990.0,0.76469586]
[1737262125676,0.17704337,105000.0,104990.0,0.66944886]
[1737262125974,0.17704337,105000.0,104990.0,0.76469586]
[1737262126159,0.17704337,105000.0,104990.0,0.66944886]
[1737262126763,0.17704337,105000.0,104990.0,0.76469586]
[1737262127562,0.17704337,105000.0,104990.0,0.66944886]
[1737262128509,0.17704337,105000.0,104990.0,0.61317004]
[1737262128655,0.20004337,105000.0,104990.0,0.66944886]
[1737262130304,0.20004337,105000.0,104990.0,0.56537004]
[1737262130693,0.20004337,105000.0,104990.0,0.38932923]
[1737262130909,0.20004337,105000.0,104990.0,0.37531094]
[1737262132688,0.48915808,105000.0,104990.0,0.37531094]
[1737262132834,0.56645808,105000.0,104990.0,0.37531094]
[1737262134570,0.56645808,105000.0,104990.0,0.36654934]
[1737262139435,0.61017926,105000.0,104990.0,0.36654934]
[1737262139648,0.70942007,105000.0,104990.0,0.36654934]
[1737262140089,0.72822423,105000.0,104990.0,0.36654934]
[1737262142693,1.28526224,105000.0,104990.0,0.36654934]
[1737262143720,0.58526224,105000.0,104990.0,0.36654934]
[1737262147300,0.53726224,105000.0,104990.0,0.36654934]
[1737262148504,0.27840354,105000.0,104990.0,0.36654934]
[1737262148706,0.33678081,105000.0,104990.0,0.36654934]
[1737262148881,0.41815808,105000.0,104990.0,0.36654934]
[1737262149084,0.51965808,105000.0,104990.0,0.36654934]
[1737262149445,0.44115808,105000.0,104990.0,0.36654934]
[1737262151461,0.39856866,105000.0,104990.0,0.36654934]
[1737262154841,0.72711321,105000.0,104990.0,0.36654934]
[1737262155041,0.82635402,105000.0,104990.0,0.36654934]
[1737262155281,1.52635402,105000.0,104990.0,0.36654934]
[1737262155478,1.5089315,105000.0,104990.0,0.36654934]
[1737262155753,1.40969069,105000.0,104990.0,0.36654934]